fUST/lending_fUST_20241114
["ID","MTS","AMOUNT","RATE_DAILY","PERIOD"]
[342162782,1731519048295,-500.0,0.00027945,4]
[342162783,1731519048306,-500.0,0.00027945,4]
[342162784,1731519048317,-500.0,0.00027945,4]
[342162785,1731519048327,-500.0,0.00027945,4]
[342162786,1731519048338,-500.0,0.00027945,4]
[342162787,1731519048348,-500.0,0.00027945,4]
[342162788,1731519048361,-500.0,0.00027945,4]
[342162789,1731519048372,-500.0,0.00027945,4]
[342162790,1731519048383,-500.0,0.00027945,4]
[342162791,1731519048394,-500.0,0.00027945,4]
[342162792,1731519048404,-500.0,0.00027945,4]
[342162793,1731519048415,-500.0,0.00027945,4]
[342162794,1731519048426,-606.77,0.00027945,4]
[342162795,1731519048437,-265.20030884,0.00027945,4]
[342162796,1731519048447,-500.0,0.00027945,4]
[342162797,1731519048457,-500.0,0.00027945,4]
[342162798,1731519048468,-500.0,0.00027945,4]
[342162799,1731519048478,-500.0,0.00027945,4]
[342162800,1731519048487,-500.0,0.00027945,4]
[342162801,1731519048497,-500.0,0.00027945,4]
[342162802,1731519048507,-500.0,0.00027945,4]
[342162803,1731519048518,-775.67,0.00027945,4]
[342162804,1731519048533,-500.0,0.00027945,4]
[342162805,1731519048543,-512.31536938,0.00027945,4]
[342162806,1731519048553,-500.0,0.00027945,4]
[342162807,1731519048562,-500.0,0.00027945,4]
[342162808,1731519048572,-326.82181987,0.00027945,4]
[342162809,1731519048581,-500.0,0.00027945,4]
[342162810,1731519048590,-500.0,0.00027945,4]
[342162811,1731519048599,-500.0,0.00027945,4]
[342162812,1731519048609,-222.39806679,0.00027945,4]
[342162813,1731519048618,-500.0,0.00027945,4]
[342162814,1731519048627,-500.0,0.00027945,4]
[342162815,1731519048637,-500.0,0.00027945,4]
[342162816,1731519048646,-500.0,0.00027945,4]
[342162817,1731519048655,-500.0,0.00027945,4]
[342162818,1731519048664,-500.0,0.00027945,4]
[342162819,1731519048673,-500.0,0.00027945,4]
[342162820,1731519048682,-500.0,0.00027945,4]
[342162821,1731519048691,-500.0,0.00027945,4]
[342162822,1731519048700,-500.0,0.00027945,4]
[342162823,1731519048709,-500.0,0.00027945,4]
[342162824,1731519048719,-500.0,0.00027945,4]
[342162825,1731519048728,-500.0,0.00027945,4]
[342162826,1731519048739,-500.0,0.00027945,4]
[342162827,1731519048750,-608.34124692,0.00027945,4]
[342162828,1731519048759,-524.95560637,0.00027945,4]
[342162829,1731519048768,-500.0,0.00027945,4]
[342162830,1731519048782,-500.0,0.00027945,4]
[342162831,1731519048791,-500.0,0.00027945,4]
[342162832,1731519048800,-500.0,0.00027945,4]
[342162833,1731519048810,-500.0,0.00027945,4]
[342162834,1731519048821,-500.0,0.00027945,4]
[342162835,1731519048831,-500.0,0.00027945,4]
[342162836,1731519048840,-500.0,0.00027945,4]
[342162837,1731519048850,-500.0,0.00027945,4]
[342162838,1731519048859,-500.0,0.00027945,4]
[342162839,1731519048869,-500.0,0.00027945,4]
[342162840,1731519048878,-500.0,0.00027945,4]
[342162841,1731519048887,-500.0,0.00027945,4]
[342162842,1731519048897,-500.0,0.00027945,4]
[342162843,1731519048906,-239.14058021,0.00027945,4]
[342162844,1731519048916,-500.0,0.00027945,4]
[342162845,1731519048925,-515.54404238,0.00027945,4]
[342162846,1731519048935,-500.0,0.00027945,4]
[342162847,1731519048944,-500.0,0.00027945,4]
[342162848,1731519048954,-500.0,0.00027945,4]
[342162849,1731519048963,-275.27913372,0.00027945,4]
[342162850,1731519048972,-500.0,0.00027945,4]
[342162851,1731519048981,-500.0,0.00027945,4]
[342162852,1731519048990,-464.47571576,0.00027945,4]
[342162853,1731519048999,-308.77120958,0.00027945,4]
[342162854,1731519049008,-500.0,0.00027945,4]
[342162855,1731519049017,-500.0,0.00027945,4]
[342162856,1731519049032,-500.0,0.00027945,4]
[342162857,1731519049042,-500.0,0.00027945,4]
[342162858,1731519049051,-500.0,0.00027945,4]
[342162859,1731519049060,-500.0,0.00027945,4]
[342162860,1731519049070,-500.0,0.00027945,4]
[342162861,1731519049079,-500.0,0.00027945,4]
[342162862,1731519049088,-500.0,0.00027945,4]
[342162863,1731519049097,-210.1726774,0.00027945,4]
[342162864,1731519049107,-500.0,0.00027945,4]
[342162865,1731519049116,-500.0,0.00027945,4]
[342162866,1731519049126,-500.0,0.00027945,4]
[342162867,1731519049136,-500.0,0.00027945,4]
[342162868,1731519049145,-431.79653638,0.00027945,4]
[342162869,1731519049155,-500.0,0.00027945,4]
[342162870,1731519049164,-500.0,0.00027945,4]
[342162871,1731519049173,-500.0,0.00027945,4]
[342162872,1731519049182,-571.56,0.00027945,4]
[342162873,1731519049192,-500.0,0.00027945,4]
[342162874,1731519049201,-500.0,0.00027945,4]
[342162875,1731519049210,-500.0,0.00027945,4]
[342162876,1731519049219,-500.0,0.00027945,4]
[342162877,1731519049228,-500.0,0.00027945,4]
[342162878,1731519049237,-524.89730007,0.00027945,4]
[342162879,1731519049246,-500.0,0.00027945,4]
[342162880,1731519049255,-781.86,0.00027945,4]
[342162881,1731519049265,-1043.35,0.00027945,4]
[342162882,1731519049277,-500.0,0.00027945,4]
[342162883,1731519049286,-500.0,0.00027945,4]
[342162884,1731519049296,-500.0,0.00027945,4]
[342162885,1731519049305,-205.61887056,0.00027945,4]
[342162886,1731519049314,-500.0,0.00027945,4]
[342162887,1731519049324,-500.0,0.00027945,4]
[342162888,1731519049334,-696.62,0.00027945,4]
[342162889,1731519049344,-500.0,0.00027945,4]
[342162890,1731519049354,-500.0,0.00027945,4]
[342162891,1731519049363,-500.0,0.00027945,4]
[342162892,1731519049373,-500.0,0.00027945,4]
[342162893,1731519049382,-500.0,0.00027945,4]
[342162894,1731519049392,-500.0,0.00027945,4]
[342162895,1731519049402,-500.0,0.00027945,4]
[342162896,1731519049412,-500.0,0.00027945,4]
[342162897,1731519049423,-500.0,0.00027945,4]
[342162898,1731519049433,-500.0,0.00027945,4]
[342162899,1731519049444,-500.0,0.00027945,4]
[342162900,1731519049454,-500.0,0.00027945,4]
[342162901,1731519049464,-719.41,0.00027945,4]
[342162902,1731519049474,-500.0,0.00027945,4]
[342162903,1731519049485,-1098.44,0.00027945,4]
[342162904,1731519049495,-500.0,0.00027945,4]
[342162905,1731519049505,-500.0,0.00027945,4]
[342162906,1731519049515,-637.51942008,0.00027945,4]
[342162907,1731519049528,-500.0,0.00027945,4]
[342162908,1731519049539,-500.0,0.00027945,4]
[342162909,1731519049548,-500.0,0.00027945,4]
[342162910,1731519049557,-500.0,0.00027945,4]
[342162911,1731519049567,-500.0,0.00027945,4]
[342162912,1731519049656,-419.43413925,0.00027945,4]
[342162913,1731519049667,-898.47,0.00027945,4]
[342162914,1731519049676,-500.0,0.00027945,4]
[342162915,1731519049686,-507.59544682,0.00027945,4]
[342162916,1731519049695,-500.0,0.00027945,4]
[342162917,1731519049705,-154.26385933,0.00027945,4]
[342162918,1731519049714,-356.5672428,0.00027945,4]
[342162919,1731519049724,-500.0,0.00027945,4]
[342162920,1731519049737,-500.0,0.00027945,4]
[342162921,1731519049747,-500.0,0.00027945,4]
[342162922,1731519049757,-500.0,0.00027945,4]
[342162923,1731519049768,-500.0,0.00027945,4]
[342162924,1731519049780,-500.0,0.00027945,4]
[342162925,1731519049791,-500.0,0.00027945,4]
[342162926,1731519049800,-153.311,0.0002795,2]
[342162927,1731519049811,-500.0,0.00027973,5]
[342162928,1731519049821,-500.0,0.00027973,5]
[342162929,1731519049830,-500.0,0.00027973,5]
[342162930,1731519049840,-500.0,0.00027973,5]
[342162931,1731519049850,-300.0,0.00028,2]
[342162932,1731519049859,-520.34,0.00028,2]
[342162933,1731519049869,-2204.09,0.00028079,15]
[342162934,1731519049879,-345.01448665,0.00028089,2]
[342162935,1731519049889,-513.593525,0.00028119,2]
[342162936,1731519049900,-151.0,0.00028204,6]
[342162937,1731519049911,-500.0,0.00028218,4]
[342162938,1731519049921,-500.0,0.00028218,4]
[342162939,1731519049931,-500.0,0.00028219,4]
[342162940,1731519049941,-500.0,0.00028219,4]
[342162941,1731519049950,-500.0,0.00028219,4]
[342162942,1731519049959,-500.0,0.00028219,4]
[342162943,1731519049969,-500.0,0.00028219,4]
[342162944,1731519049979,-627.50542959,0.00028219,4]
[342162945,1731519049988,-153.95832004,0.00028219,4]
[342162946,1731519049998,-500.0,0.00028219,4]
[342162947,1731519050007,-500.0,0.00028219,4]
[342162948,1731519050016,-500.0,0.00028219,4]
[342162949,1731519050027,-500.0,0.00028219,4]
[342162950,1731519050037,-182.84041007,0.00028219,4]
[342162951,1731519050046,-500.0,0.00028219,4]
[342162952,1731519050055,-500.0,0.00028219,4]
[342162953,1731519050064,-500.0,0.00028219,4]
[342162954,1731519050073,-500.0,0.00028219,4]
[342162955,1731519050082,-500.0,0.00028219,4]
[342162956,1731519050092,-500.0,0.00028219,4]
[342162957,1731519050101,-606.77,0.00028219,4]
[342162958,1731519050111,-205.07257207,0.00028219,4]
[342162959,1731519050120,-500.0,0.00028219,4]
[342162960,1731519050129,-500.0,0.00028219,4]
[342162961,1731519050138,-500.0,0.00028219,4]
[342162962,1731519050147,-500.0,0.00028219,4]
[342162963,1731519050156,-500.0,0.00028219,4]
[342162964,1731519050165,-775.67,0.00028219,4]
[342162965,1731519050175,-500.0,0.00028219,4]
[342162966,1731519050183,-500.0,0.00028219,4]
[342162967,1731519050193,-523.42,0.00028219,4]
[342162968,1731519050202,-500.0,0.00028219,4]
[342162969,1731519050211,-500.0,0.00028219,4]
[342162970,1731519050220,-500.0,0.00028219,4]
[342162971,1731519050229,-500.0,0.00028219,4]
[342162972,1731519050238,-202.22,0.00028219,4]
[342162973,1731519050247,-500.0,0.00028219,4]
[342162974,1731519050255,-500.0,0.00028219,4]
[342162975,1731519050264,-500.0,0.00028219,4]
[342162976,1731519050278,-500.0,0.00028219,4]
[342162977,1731519050287,-500.0,0.00028219,4]
[342162978,1731519050296,-500.0,0.00028219,4]
[342162979,1731519050305,-500.0,0.00028219,4]
[342162980,1731519050315,-500.0,0.00028219,4]
[342162981,1731519050325,-500.0,0.00028219,4]
[342162982,1731519050334,-500.0,0.00028219,4]
[342162983,1731519050346,-500.0,0.00028219,4]
[342162984,1731519050356,-500.0,0.00028219,4]
[342162985,1731519050365,-500.0,0.00028219,4]
[342162986,1731519050375,-508.656144,0.00028219,4]
[342162987,1731519050384,-500.0,0.00028219,4]
[342162988,1731519050393,-500.0,0.00028219,4]
[342162989,1731519050403,-500.0,0.00028219,4]
[342162990,1731519050412,-500.0,0.00028219,4]
[342162991,1731519050421,-500.0,0.00028219,4]
[342162992,1731519050431,-500.0,0.00028219,4]
[342162993,1731519050440,-500.0,0.00028219,4]
[342162994,1731519050451,-500.0,0.00028219,4]
[342162995,1731519050463,-500.0,0.00028219,4]
[342162996,1731519050473,-500.0,0.00028219,4]
[342162997,1731519050483,-500.0,0.00028219,4]
[342162998,1731519050492,-500.0,0.00028219,4]
[342162999,1731519050504,-500.0,0.00028219,4]
[342163000,1731519050520,-500.0,0.00028219,4]
[342163001,1731519050539,-500.0,0.00028219,4]
[342163002,1731519050551,-500.0,0.00028219,4]
[342163003,1731519050566,-500.0,0.00028219,4]
[342163004,1731519050580,-500.0,0.00028219,4]
[342163005,1731519050594,-500.0,0.00028219,4]
[342163006,1731519050610,-500.0,0.00028219,4]
[342163007,1731519050624,-177.07292649,0.00028219,4]
[342163008,1731519050640,-500.0,0.00028219,4]
[342163009,1731519050659,-500.0,0.00028219,4]
[342163010,1731519050672,-500.0,0.00028219,4]
[342163011,1731519050685,-500.0,0.00028219,4]
[342163012,1731519050699,-500.0,0.00028219,4]
[342163013,1731519050713,-571.56,0.00028219,4]
[342163014,1731519050725,-500.0,0.00028219,4]
[342163015,1731519050736,-500.0,0.00028219,4]
[342163016,1731519050753,-500.0,0.00028219,4]
[342163017,1731519050769,-500.0,0.00028219,4]
[342163018,1731519050786,-500.0,0.00028219,4]
[342163019,1731519050799,-500.0,0.00028219,4]
[342163020,1731519050813,-781.86,0.00028219,4]
[342163021,1731519050830,-1043.35,0.00028219,4]
[342163022,1731519050845,-500.0,0.00028219,4]
[342163023,1731519050856,-696.62,0.00028219,4]
[342163024,1731519050867,-500.0,0.00028219,4]
[342163025,1731519050879,-500.0,0.00028219,4]
[342163026,1731519050894,-500.0,0.00028219,4]
[342163027,1731519050909,-500.0,0.00028219,4]
[342163028,1731519050920,-500.5762635,0.00028219,4]
[342163029,1731519050933,-500.0,0.00028219,4]
[342163030,1731519050946,-500.0,0.00028219,4]
[342163031,1731519050959,-500.0,0.00028219,4]
[342163032,1731519050971,-500.0,0.00028219,4]
[342163033,1731519050982,-719.41,0.00028219,4]
[342163034,1731519050994,-500.0,0.00028219,4]
[342163035,1731519051006,-1098.44,0.00028219,4]
[342163036,1731519051018,-500.0,0.00028219,4]
[342163037,1731519051033,-500.0,0.00028219,4]
[342163038,1731519051044,-226.23416895,0.00028219,4]
[342163039,1731519051056,-500.0,0.00028219,4]
[342163040,1731519051068,-500.0,0.00028219,4]
[342163041,1731519051081,-898.47,0.00028219,4]
[342163042,1731519051094,-500.0,0.00028219,4]
[342163043,1731519051106,-500.0,0.00028219,4]
[342163044,1731519051118,-500.0,0.00028219,4]
[342163045,1731519051131,-500.0,0.00028219,4]
[342163046,1731519051143,-500.0,0.00028219,4]
[342163047,1731519051161,-500.0,0.00028221,5]
[342163048,1731519051174,-1000.0,0.00028221,5]
[342163049,1731519051186,-500.0,0.00028329,7]
[342163050,1731519051197,-345.01448665,0.00028333,2]
[342163051,1731519051209,-153.354,0.0002839,7]
[342163052,1731519051221,-500.0,0.00028492,4]
[342163053,1731519051232,-500.0,0.00028492,4]
[342163054,1731519051245,-500.0,0.00028493,4]
[342163055,1731519051257,-500.0,0.00028493,4]
[342163056,1731519051270,-392.11661648,0.00028493,4]
[342163057,1731519051285,-500.0,0.00028493,4]
[342163058,1731519051298,-500.0,0.00028493,4]
[342163059,1731519051309,-500.0,0.00028493,4]
[342163060,1731519051321,-500.0,0.00028493,4]
[342163061,1731519051332,-500.0,0.00028493,4]
[342163062,1731519051343,-500.0,0.00028493,4]
[342163063,1731519051355,-500.0,0.00028493,4]
[342163064,1731519051368,-500.0,0.00028493,4]
[342163065,1731519051380,-500.0,0.00028493,4]
[342163066,1731519051392,-500.0,0.00028493,4]
[342163067,1731519051403,-281.35693545,0.00028493,4]
[342163068,1731519051415,-606.77,0.00028493,4]
[342163069,1731519051426,-500.0,0.00028493,4]
[342163070,1731519051437,-500.0,0.00028493,4]
[342163071,1731519051449,-500.0,0.00028493,4]
[342163072,1731519051460,-462.98494405,0.00028493,4]
[342163073,1731519051472,-500.0,0.00028493,4]
[342163074,1731519051484,-775.67,0.00028493,4]
[342163075,1731519051496,-513.51516764,0.00028493,4]
[342163076,1731519051508,-251.92,0.00028493,4]
[342163077,1731519051519,-500.0,0.00028493,4]
[342163078,1731519051535,-500.0,0.00028493,4]
[342163079,1731519051547,-500.0,0.00028493,4]
[342163080,1731519051560,-500.0,0.00028493,4]
[342163081,1731519051573,-500.0,0.00028493,4]
[342163082,1731519051585,-500.0,0.00028493,4]
[342163083,1731519051597,-500.0,0.00028493,4]
[342163084,1731519051609,-299.69645739,0.00028493,4]
[342163085,1731519051745,-500.0,0.00028493,4]
[342163086,1731519051755,-500.0,0.00028493,4]
[342163087,1731519051765,-500.0,0.00028493,4]
[342163088,1731519051776,-500.0,0.00028493,4]
[342163089,1731519051786,-500.0,0.00028493,4]
[342163090,1731519051795,-500.0,0.00028493,4]
[342163091,1731519051804,-500.0,0.00028493,4]
[342163092,1731519051815,-500.0,0.00028493,4]
[342163093,1731519051825,-500.0,0.00028493,4]
[342163094,1731519051835,-513.5457821,0.00028493,4]
[342163095,1731519051845,-500.0,0.00028493,4]
[342163096,1731519051855,-500.0,0.00028493,4]
[342163097,1731519051864,-500.0,0.00028493,4]
[342163098,1731519051874,-500.0,0.00028493,4]
[342163099,1731519051883,-500.0,0.00028493,4]
[342163100,1731519051894,-226.10009683,0.00028493,4]
[342163101,1731519051903,-500.0,0.00028493,4]
[342163102,1731519051914,-500.0,0.00028493,4]
[342163103,1731519051923,-500.0,0.00028493,4]
[342163104,1731519051933,-500.0,0.00028493,4]
[342163105,1731519051942,-500.0,0.00028493,4]
[342163106,1731519051951,-500.0,0.00028493,4]
[342163107,1731519051960,-500.0,0.00028493,4]
[342163108,1731519051970,-500.0,0.00028493,4]
[342163109,1731519051980,-500.0,0.00028493,4]
[342163110,1731519051989,-500.0,0.00028493,4]
[342163111,1731519051999,-571.56,0.00028493,4]
[342163112,1731519052008,-500.0,0.00028493,4]
[342163113,1731519052017,-500.0,0.00028493,4]
[342163114,1731519052029,-94.24045218,0.00028493,4]
[342163115,1731519052257,-500.0,0.00026443,2]
[342163116,1731519052268,-150.23,0.00027387,3]
[342163117,1731519052280,-500.0,0.00027397,4]
[342163118,1731519052290,-500.0,0.00027397,4]
[342163119,1731519052300,-339.37525788,0.00028493,4]
[342163120,1731519052316,-66.38428994,0.00028493,4]
[342163121,1731519052326,-500.0,0.00028493,4]
[342163122,1731519052336,-408.89208198,0.00028493,4]
[342163123,1731519052346,-500.0,0.00028493,4]
[342163124,1731519052355,-526.05191335,0.00028493,4]
[342163125,1731519052369,-255.80808665,0.00028493,4]
[342163126,1731519052379,-1043.35,0.00028493,4]
[342163127,1731519052388,-696.62,0.00028493,4]
[342163128,1731519052399,-500.0,0.00028493,4]
[342163129,1731519052410,-500.0,0.00028493,4]
[342163130,1731519052419,-500.0,0.00028493,4]
[342163131,1731519052429,-381.761867,0.00028493,4]
[342163132,1731519052442,-118.238133,0.00028493,4]
[342163133,1731519052451,-500.0,0.00028493,4]
[342163134,1731519052461,-500.0,0.00028493,4]
[342163135,1731519052471,-175.61,0.00028493,4]
[342163136,1731519052481,-719.41,0.00028493,4]
[342163137,1731519052490,-500.0,0.00028493,4]
[342163138,1731519052499,-1098.44,0.00028493,4]
[342163139,1731519052509,-500.0,0.00028493,4]
[342163140,1731519052520,-500.0,0.00028493,4]
[342163141,1731519052534,-500.0,0.00028493,4]
[342163142,1731519052543,-898.47,0.00028493,4]
[342163143,1731519052555,-500.0,0.00028493,4]
[342163144,1731519052565,-500.0,0.00028493,4]
[342163145,1731519052574,-500.0,0.00028493,4]
[342163146,1731519052584,-500.0,0.00028493,4]
[342163147,1731519052594,-500.0,0.00028493,4]
[342163148,1731519052604,-500.0,0.00028493,4]
[342163149,1731519052614,-8217.99933925,0.00028495,2]
[342163150,1731519052623,-475.99443327,0.00028521,5]
[342163151,1731519052779,-524.00556673,0.00028521,5]
[342163152,1731519052789,-513.593525,0.0002853,2]
[342163153,1731519052799,-63.49757727,0.00028577,2]
[342163154,1731519052856,-1169.27083333,0.0002,2]
[342163155,1731519052866,-500.0,0.00026443,2]
[342163156,1731519052875,-24900.0,0.00026484,2]
[342163157,1731519052885,-281.51690938,0.00028577,2]
[342163158,1731519052895,-1140.11155695,0.00028592,2]
[342163159,1731519052904,-300.46,0.00028757,3]
[342163160,1731519052915,-500.0,0.00028766,4]
[342163161,1731519052925,-500.0,0.00028767,4]
[342163162,1731519052935,-385.287173,0.00028767,4]
[342163163,1731519052944,-500.0,0.00028767,4]
[342163164,1731519052954,-500.0,0.00028767,4]
[342163165,1731519052963,-500.0,0.00028767,4]
[342163166,1731519052972,-500.0,0.00028767,4]
[342163167,1731519052982,-500.0,0.00028767,4]
[342163168,1731519052991,-500.0,0.00028767,4]
[342163169,1731519053000,-500.0,0.00028767,4]
[342163170,1731519053009,-500.0,0.00028767,4]
[342163171,1731519053019,-500.0,0.00028767,4]
[342163172,1731519053031,-606.77,0.00028767,4]
[342163173,1731519053040,-500.0,0.00028767,4]
[342163174,1731519053050,-500.0,0.00028767,4]
[342163175,1731519053059,-500.0,0.00028767,4]
[342163176,1731519053069,-500.0,0.00028767,4]
[342163177,1731519053078,-775.67,0.00028767,4]
[342163178,1731519053088,-500.0,0.00028767,4]
[342163179,1731519053097,-500.0,0.00028767,4]
[342163180,1731519053106,-575.53,0.00028767,4]
[342163181,1731519053116,-500.0,0.00028767,4]
[342163182,1731519053125,-500.0,0.00028767,4]
[342163183,1731519053135,-503.00948476,0.00028767,4]
[342163184,1731519053144,-500.0,0.00028767,4]
[342163185,1731519053153,-500.0,0.00028767,4]
[342163186,1731519053164,-500.0,0.00028767,4]
[342163187,1731519053173,-500.0,0.00028767,4]
[342163188,1731519053183,-500.0,0.00028767,4]
[342163189,1731519053192,-395.19759307,0.00028767,4]
[342163190,1731519053202,-500.0,0.00028767,4]
[342163191,1731519053211,-637.93691439,0.00028767,4]
[342163192,1731519053220,-500.0,0.00028767,4]
[342163193,1731519053230,-500.0,0.00028767,7]
[342163194,1731519053239,-500.0,0.00028767,4]
[342163195,1731519053249,-500.0,0.00028767,4]
[342163196,1731519053259,-500.0,0.00028767,4]
[342163197,1731519053268,-500.0,0.00028767,4]
[342163198,1731519053280,-354.6482916,0.00028767,4]
[342163199,1731519053290,-500.0,0.00028767,4]
[342163200,1731519053299,-500.0,0.00028767,4]
[342163201,1731519053309,-500.0,0.00028767,4]
[342163202,1731519053319,-500.0,0.00028767,4]
[342163203,1731519053328,-571.56,0.00028767,4]
[342163204,1731519053338,-500.0,0.00028767,4]
[342163205,1731519053347,-500.0,0.00028767,4]
[342163206,1731519053358,-500.0,0.00028767,4]
[342163207,1731519053367,-781.86,0.00028767,4]
[342163208,1731519053376,-1043.35,0.00028767,4]
[342163209,1731519053385,-696.62,0.00028767,4]
[342163210,1731519053396,-500.0,0.00028767,4]
[342163211,1731519053406,-500.0,0.00028767,4]
[342163212,1731519053416,-500.0,0.00028767,4]
[342163213,1731519053427,-500.0,0.00028767,4]
[342163214,1731519053436,-500.0,0.00028767,4]
[342163215,1731519053446,-719.41,0.00028767,4]
[342163216,1731519053456,-500.0,0.00028767,4]
[342163217,1731519053465,-1098.44,0.00028767,4]
[342163218,1731519053475,-500.0,0.00028767,4]
[342163219,1731519053484,-500.0,0.00028767,4]
[342163220,1731519053495,-500.0,0.00028767,4]
[342163221,1731519053505,-898.47,0.00028767,4]
[342163222,1731519053514,-500.0,0.00028767,4]
[342163223,1731519053525,-500.0,0.00028767,4]
[342163224,1731519053535,-500.0,0.00028767,4]
[342163225,1731519053544,-500.0,0.00028767,4]
[342163226,1731519053554,-500.0,0.00028767,4]
[342163227,1731519053563,-300.0,0.000288,2]
[342163228,1731519053574,-345.01448665,0.00028821,2]
[342163229,1731519053584,-151.0,0.00028869,7]
[342163230,1731519053595,-8217.99933926,0.00028902,2]
[342163231,1731519053605,-500.0,0.00028922,5]
[342163232,1731519053615,-513.593525,0.00028941,2]
[342163233,1731519053624,-153.377,0.0002899,3]
[342163234,1731519053634,-300.0,0.00029,2]
[342163235,1731519053643,-4175.93511381,0.00029,120]
[342163236,1731519053653,-6391.73071426,0.00029,30]
[342163237,1731519053662,-500.0,0.0002904,4]
[342163238,1731519053671,-500.0,0.00029041,4]
[342163239,1731519053681,-500.0,0.00029041,4]
[342163240,1731519053690,-500.0,0.00029041,4]
[342163241,1731519053699,-500.0,0.00029041,4]
[342163242,1731519053710,-500.0,0.00029041,4]
[342163243,1731519053719,-500.0,0.00029041,4]
[342163244,1731519053729,-606.77,0.00029041,4]
[342163245,1731519053740,-500.0,0.00029041,4]
[342163246,1731519053752,-500.0,0.00029041,4]
[342163247,1731519053762,-500.0,0.00029041,4]
[342163248,1731519053772,-500.0,0.00029041,4]
[342163249,1731519053784,-775.67,0.00029041,4]
[342163250,1731519053793,-492.21,0.00029041,4]
[342163251,1731519053803,-500.0,0.00029041,4]
[342163252,1731519053812,-500.0,0.00029041,4]
[342163253,1731519053824,-191.69988998,0.00029041,4]
[342163254,1731519053834,-500.0,0.00029041,4]
[342163255,1731519053844,-500.0,0.00029041,4]
[342163256,1731519053853,-500.0,0.00029041,4]
[342163257,1731519053862,-500.0,0.00029041,4]
[342163258,1731519053872,-368.13941775,0.00029041,4]
[342163259,1731519053882,-500.0,0.00029041,4]
[342163260,1731519053891,-500.0,0.00029041,4]
[342163261,1731519053901,-500.0,0.00029041,4]
[342163262,1731519053910,-500.0,0.00029041,4]
[342163263,1731519053919,-396.22410097,0.00029041,4]
[342163275,1731519363925,2325.10484418,0.00027,120]
[342163278,1731519583007,167.903367,0.00013973,2]
[342163364,1731520231871,-501.06226,0.0002,2]
[342163365,1731520231991,-650.26151516,0.0002,2]
[342163377,1731520237888,-17.94705817,0.0002,2]
[342163378,1731520237898,-930.51,0.000219,2]
[342163379,1731520237907,-596.23388674,0.00023387,2]
[342163380,1731520237925,-185.42061326,0.00023387,2]
[342163381,1731520237935,-174.165555,0.00023977,2]
[342163382,1731520237945,-576.5965889,0.00024139,2]
[342163383,1731520237956,-300.0,0.00025,2]
[342163384,1731520237966,-270.2,0.00025,2]
[342163385,1731520237976,-78.80968934,0.00025081,2]
[342163424,1731520243053,-221.19031066,0.00025081,2]
[342163425,1731520243063,-1951.70968924,0.00025082,2]
[342163426,1731520243075,-11200.0,0.00025082,2]
[342163427,1731520243091,-3674.87990599,0.00025082,2]
[342163428,1731520243128,-8073.41040477,0.00025082,2]